[Event "December 5 Late 2023"]
[Site "https://www.chess.com"]
[Date "2023.12.05"]
[Round "1"]
[White "Mekhitarian, Krikor Sevag"]
[Black "Skaric, Djuro"]
[Result "1-0"]
[Board "57"]
[TimeControl "180+1"]
[WhiteFideId "2107660"]
[BlackFideId "934569"]
[WhiteElo "2844"]
[BlackElo "2414"]
[WhiteTeam "BRA"]
[BlackTeam "SRB"]
[WhiteClock "0:00:36"]
[BlackClock "0:00:37"]

1. Nf3 {[%clk 0:03:00]}  d6 {[%clk 0:03:00]} 2. d4 {[%clk 0:03:00]}  g6 {[%clk 0:03:00]} 3. c4 {[%clk 0:02:58]}  Bg7 {[%clk 0:03:01]} 4. e4 {[%clk 0:02:59]}  Nf6 {[%clk 0:03:02]} 5. Nc3 {[%clk 0:02:59]}  O-O {[%clk 0:03:02]} 6. h3 {[%clk 0:02:59]}  Nc6 {[%clk 0:03:03]} 7. d5 {[%clk 0:02:57]}  Ne5 {[%clk 0:03:03]} 8. Nxe5 {[%clk 0:02:57]}  dxe5 {[%clk 0:03:03]} 9. Be2 {[%clk 0:02:56]}  Ne8 {[%clk 0:03:04]} 10. O-O {[%clk 0:02:50]}  f5 {[%clk 0:03:04]} 11. c5 {[%clk 0:02:50]}  h6 {[%clk 0:03:00]} 12. b4 {[%clk 0:02:46]}  Nf6 {[%clk 0:02:57]} 13. a4 {[%clk 0:02:39]}  Kh7 {[%clk 0:02:53]} 14. b5 {[%clk 0:02:36]}  fxe4 {[%clk 0:02:51]} 15. Be3 {[%clk 0:02:34]}  b6 {[%clk 0:02:39]} 16. a5 {[%clk 0:02:19]}  Bf5 {[%clk 0:02:34]} 17. Qb3 {[%clk 0:01:25]}  Nd7 {[%clk 0:02:00]} 18. c6 {[%clk 0:01:21]}  Nc5 {[%clk 0:01:53]} 19. Qc4 {[%clk 0:01:18]}  e6 {[%clk 0:01:50]} 20. Bxc5 {[%clk 0:01:16]}  exd5 {[%clk 0:01:50]} 21. Qxd5 {[%clk 0:01:09]}  Qxd5 {[%clk 0:01:48]} 22. Nxd5 {[%clk 0:01:09]}  bxc5 {[%clk 0:01:44]} 23. Nxc7 {[%clk 0:01:09]}  Rab8 {[%clk 0:01:41]} 24. Nd5 {[%clk 0:01:05]}  Be6 {[%clk 0:01:31]} 25. Rfd1 {[%clk 0:01:05]}  Rfc8 {[%clk 0:01:27]} 26. Bc4 {[%clk 0:00:42]}  Kh8 {[%clk 0:01:26]} 27. Rab1 {[%clk 0:00:40]}  Bf8 {[%clk 0:01:24]} 28. Ne3 {[%clk 0:00:39]}  Re8 {[%clk 0:01:08]} 29. b6 {[%clk 0:00:40]}  axb6 {[%clk 0:00:48]} 30. axb6 {[%clk 0:00:39]}  Bc8 {[%clk 0:00:45]} 31. c7 {[%clk 0:00:37]}  Rb7 {[%clk 0:00:37]} 32. Rd8 {[%clk 0:00:36]} 1-0

[Event "December 5 Late 2023"]
[Site "https://www.chess.com"]
[Date "2023.12.05"]
[Round "1"]
[White "Blanco Diez, David"]
[Black "Livaic, Leon"]
[Result "0-1"]
[Board "58"]
[TimeControl "180+1"]
[WhiteFideId "32032927"]
[BlackFideId "14531534"]
[WhiteElo "2413"]
[BlackElo "2838"]
[WhiteTeam "ESP"]
[BlackTeam "CRO"]
[WhiteClock "0:00:01"]
[BlackClock "0:00:08"]

1. e4 {[%clk 0:03:00]}  c5 {[%clk 0:02:58]} 2. Nf3 {[%clk 0:02:59]}  d6 {[%clk 0:02:57]} 3. d4 {[%clk 0:03:00]}  cxd4 {[%clk 0:02:58]} 4. Nxd4 {[%clk 0:03:00]}  Nf6 {[%clk 0:02:59]} 5. Nc3 {[%clk 0:03:01]}  a6 {[%clk 0:02:59]} 6. Rg1 {[%clk 0:03:00]}  g6 {[%clk 0:02:54]} 7. g4 {[%clk 0:02:59]}  Bg7 {[%clk 0:02:53]} 8. g5 {[%clk 0:02:57]}  Nh5 {[%clk 0:02:50]} 9. Be2 {[%clk 0:02:53]}  Nc6 {[%clk 0:02:46]} 10. Nxc6 {[%clk 0:02:40]}  bxc6 {[%clk 0:02:47]} 11. Bxh5 {[%clk 0:02:40]}  gxh5 {[%clk 0:02:48]} 12. Qxh5 {[%clk 0:02:29]}  Rb8 {[%clk 0:02:37]} 13. Qf3 {[%clk 0:02:19]}  Qa5 {[%clk 0:02:31]} 14. h4 {[%clk 0:01:39]}  O-O {[%clk 0:01:42]} 15. h5 {[%clk 0:01:29]}  Be6 {[%clk 0:01:41]} 16. Qe3 {[%clk 0:01:20]}  Rb4 {[%clk 0:01:33]} 17. Bd2 {[%clk 0:01:12]}  Rxb2 {[%clk 0:01:18]} 18. Nd1 {[%clk 0:01:09]}  Qb5 {[%clk 0:00:52]} 19. Nxb2 {[%clk 0:00:58]}  Qxb2 {[%clk 0:00:53]} 20. Rd1 {[%clk 0:00:54]}  Qxc2 {[%clk 0:00:51]} 21. h6 {[%clk 0:00:35]}  Bh8 {[%clk 0:00:36]} 22. Ke2 {[%clk 0:00:23]}  Qc4+ {[%clk 0:00:21]} 23. Kf3 {[%clk 0:00:21]}  d5 {[%clk 0:00:22]} 24. Rc1 {[%clk 0:00:08]}  Qxa2 {[%clk 0:00:19]} 25. Bc3 {[%clk 0:00:05]}  dxe4+ {[%clk 0:00:18]} 26. Kg2 {[%clk 0:00:06]}  Qd5 {[%clk 0:00:14]} 27. Bxh8 {[%clk 0:00:05]}  Kxh8 {[%clk 0:00:15]} 28. Qc3+ {[%clk 0:00:05]}  f6 {[%clk 0:00:16]} 29. gxf6 {[%clk 0:00:02]}  Rxf6 {[%clk 0:00:14]} 30. Kf1 {[%clk 0:00:02]}  Qb5+ {[%clk 0:00:10]} 31. Ke1 {[%clk 0:00:01]}  Qf5 {[%clk 0:00:06]} 32. Qg3 {[%clk 0:00:02]}  Rg6 {[%clk 0:00:02]} 33. Qb8+ {[%clk 0:00:02]}  Bg8 {[%clk 0:00:03]} 34. Rxg6 {[%clk 0:00:03]}  hxg6 {[%clk 0:00:04]} 35. Qg3 {[%clk 0:00:02]}  Kh7 {[%clk 0:00:04]} 36. Qe3 {[%clk 0:00:01]}  Bd5 {[%clk 0:00:04]} 37. Rc3 {[%clk 0:00:01]}  Qh5 {[%clk 0:00:03]} 38. Rc1 {[%clk 0:00:01]}  Qxh6 {[%clk 0:00:03]} 39. Qxh6+ {[%clk 0:00:01]}  Kxh6 {[%clk 0:00:04]} 40. Ra1 {[%clk 0:00:01]}  Bc4 {[%clk 0:00:05]} 41. Rd1 {[%clk 0:00:02]}  Bd3 {[%clk 0:00:05]} 42. Rc1 {[%clk 0:00:01]}  Bb5 {[%clk 0:00:05]} 43. Rd1 {[%clk 0:00:02]}  Kg5 {[%clk 0:00:05]} 44. Rd4 {[%clk 0:00:01]}  Kf5 {[%clk 0:00:05]} 45. Rd7 {[%clk 0:00:01]}  e5 {[%clk 0:00:05]} 46. Rc7 {[%clk 0:00:01]}  g5 {[%clk 0:00:06]} 47. Kd2 {[%clk 0:00:01]}  g4 {[%clk 0:00:06]} 48. Ke3 {[%clk 0:00:02]}  a5 {[%clk 0:00:07]} 49. Ra7 {[%clk 0:00:02]}  a4 {[%clk 0:00:07]} 50. Rc7 {[%clk 0:00:03]}  Ke6 {[%clk 0:00:06]} 51. Rg7 {[%clk 0:00:03]}  Kd5 {[%clk 0:00:06]} 52. Rxg4 {[%clk 0:00:04]}  a3 {[%clk 0:00:06]} 53. Rg1 {[%clk 0:00:03]}  Kc4 {[%clk 0:00:06]} 54. Rc1+ {[%clk 0:00:02]}  Kb3 {[%clk 0:00:07]} 55. Kxe4 {[%clk 0:00:03]}  a2 {[%clk 0:00:07]} 56. Kxe5 {[%clk 0:00:02]}  Kb2 {[%clk 0:00:07]} 57. Re1 {[%clk 0:00:02]}  Bd3 {[%clk 0:00:07]} 58. f4 {[%clk 0:00:01]}  c5 {[%clk 0:00:07]} 59. f5 {[%clk 0:00:01]}  c4 {[%clk 0:00:05]} 60. f6 {[%clk 0:00:01]}  Bg6 {[%clk 0:00:06]} 61. Kd4 {[%clk 0:00:01]}  c3 {[%clk 0:00:06]} 62. Ra1 {[%clk 0:00:01]}  Kxa1 {[%clk 0:00:06]} 63. Kxc3 {[%clk 0:00:02]}  Kb1 {[%clk 0:00:06]} 64. f7 {[%clk 0:00:02]}  Bxf7 {[%clk 0:00:06]} 65. Kd2 {[%clk 0:00:02]}  a1=Q {[%clk 0:00:07]} 66. Ke3 {[%clk 0:00:01]}  Qe5+ {[%clk 0:00:08]} 0-1

[Event "December 5 Late 2023"]
[Site "https://www.chess.com"]
[Date "2023.12.05"]
[Round "1"]
[White "Zimmermann, Ulrich"]
[Black "Rustemov, Alexander"]
[Result "0-1"]
[Board "60"]
[TimeControl "180+1"]
[WhiteFideId "24654523"]
[BlackFideId "4119002"]
[WhiteElo "2413"]
[BlackElo "2831"]
[WhiteTeam "GER"]
[BlackTeam "RUS"]
[WhiteClock "0:00:44"]
[BlackClock "0:01:30"]

1. Nf3 {[%clk 0:03:00]}  d5 {[%clk 0:02:59]} 2. g3 {[%clk 0:03:01]}  c6 {[%clk 0:02:59]} 3. Bg2 {[%clk 0:03:02]}  Bf5 {[%clk 0:02:59]} 4. O-O {[%clk 0:03:03]}  e6 {[%clk 0:03:00]} 5. d3 {[%clk 0:03:04]}  h6 {[%clk 0:03:00]} 6. Nbd2 {[%clk 0:03:04]}  Nf6 {[%clk 0:02:59]} 7. Qe1 {[%clk 0:03:05]}  Bh7 {[%clk 0:02:59]} 8. e4 {[%clk 0:03:06]}  Be7 {[%clk 0:02:59]} 9. a4 {[%clk 0:02:52]}  a5 {[%clk 0:02:53]} 10. Qe2 {[%clk 0:02:50]}  Na6 {[%clk 0:02:51]} 11. Ne5 {[%clk 0:02:39]}  Qc7 {[%clk 0:02:45]} 12. f4 {[%clk 0:02:36]}  O-O {[%clk 0:02:43]} 13. h3 {[%clk 0:02:20]}  Nd7 {[%clk 0:02:38]} 14. Nef3 {[%clk 0:02:19]}  dxe4 {[%clk 0:02:30]} 15. dxe4 {[%clk 0:02:18]}  Ndc5 {[%clk 0:02:30]} 16. Ne5 {[%clk 0:02:12]}  Rad8 {[%clk 0:02:28]} 17. c3 {[%clk 0:02:04]}  f6 {[%clk 0:02:25]} 18. Nec4 {[%clk 0:01:59]}  Nd3 {[%clk 0:02:24]} 19. Kh2 {[%clk 0:02:00]}  Nac5 {[%clk 0:02:21]} 20. h4 {[%clk 0:01:51]}  Ra8 {[%clk 0:02:19]} 21. Bh3 {[%clk 0:01:50]}  Kh8 {[%clk 0:02:16]} 22. b3 {[%clk 0:01:41]}  b5 {[%clk 0:02:12]} 23. axb5 {[%clk 0:01:37]}  cxb5 {[%clk 0:02:13]} 24. Ne3 {[%clk 0:01:34]}  b4 {[%clk 0:02:03]} 25. cxb4 {[%clk 0:01:29]}  axb4 {[%clk 0:02:02]} 26. Rxa8 {[%clk 0:01:24]}  Rxa8 {[%clk 0:02:03]} 27. Nec4 {[%clk 0:01:23]}  Ra2 {[%clk 0:01:54]} 28. Qd1 {[%clk 0:01:05]}  Nxe4 {[%clk 0:01:46]} 29. Bg2 {[%clk 0:01:04]}  Nxc1 {[%clk 0:01:38]} 30. Qxc1 {[%clk 0:01:02]}  Nxd2 {[%clk 0:01:37]} 31. Nxd2 {[%clk 0:00:47]}  Qxc1 {[%clk 0:01:36]} 32. Rxc1 {[%clk 0:00:48]}  Rxd2 {[%clk 0:01:36]} 33. Rc8+ {[%clk 0:00:44]}  Bd8 {[%clk 0:01:30]} 0-1

[Event "December 5 Late 2023"]
[Site "https://www.chess.com"]
[Date "2023.12.05"]
[Round "1"]
[White "Bordi, Kevin"]
[Black "Bochnicka, Vladimir"]
[Result "1-0"]
[Board "61"]
[TimeControl "180+1"]
[WhiteFideId "621862"]
[BlackFideId "14943450"]
[WhiteElo "2828"]
[BlackElo "2412"]
[WhiteTeam "MNC"]
[BlackTeam "SVK"]
[WhiteClock "0:00:08"]
[BlackClock "0:00:02"]

1. e4 {[%clk 0:02:55]}  c5 {[%clk 0:02:59]} 2. Nf3 {[%clk 0:02:56]}  Nc6 {[%clk 0:02:59]} 3. Bc4 {[%clk 0:02:56]}  e6 {[%clk 0:02:59]} 4. O-O {[%clk 0:02:55]}  Be7 {[%clk 0:02:55]} 5. Re1 {[%clk 0:02:55]}  d5 {[%clk 0:02:55]} 6. Bb5 {[%clk 0:02:51]}  Nf6 {[%clk 0:02:53]} 7. exd5 {[%clk 0:02:43]}  exd5 {[%clk 0:02:51]} 8. d4 {[%clk 0:02:39]}  O-O {[%clk 0:02:50]} 9. dxc5 {[%clk 0:02:39]}  Bxc5 {[%clk 0:02:51]} 10. Be3 {[%clk 0:02:20]}  Bxe3 {[%clk 0:02:29]} 11. Rxe3 {[%clk 0:02:20]}  Qb6 {[%clk 0:02:29]} 12. Bxc6 {[%clk 0:01:39]}  bxc6 {[%clk 0:02:16]} 13. Rb3 {[%clk 0:01:38]}  Qc7 {[%clk 0:02:14]} 14. c4 {[%clk 0:01:32]}  dxc4 {[%clk 0:02:01]} 15. Rc3 {[%clk 0:01:32]}  Be6 {[%clk 0:02:01]} 16. Nbd2 {[%clk 0:01:32]}  Rad8 {[%clk 0:02:01]} 17. Qc2 {[%clk 0:01:30]}  Rfe8 {[%clk 0:01:32]} 18. h3 {[%clk 0:01:27]}  Bd5 {[%clk 0:01:26]} 19. Nxc4 {[%clk 0:01:21]}  Be4 {[%clk 0:01:12]} 20. Qa4 {[%clk 0:01:14]}  Nd5 {[%clk 0:00:39]} 21. Ra3 {[%clk 0:01:14]}  Re7 {[%clk 0:00:39]} 22. Ncd2 {[%clk 0:01:03]}  Bf5 {[%clk 0:00:26]} 23. Rc1 {[%clk 0:01:03]}  Nf4 {[%clk 0:00:15]} 24. Rxc6 {[%clk 0:00:48]}  Qb8 {[%clk 0:00:09]} 25. Rb3 {[%clk 0:00:35]}  Rb7 {[%clk 0:00:08]} 26. Rxb7 {[%clk 0:00:34]}  Qxb7 {[%clk 0:00:09]} 27. Qxf4 {[%clk 0:00:31]}  Qxc6 {[%clk 0:00:08]} 28. Qxf5 {[%clk 0:00:31]}  Qc1+ {[%clk 0:00:07]} 29. Kh2 {[%clk 0:00:32]}  g6 {[%clk 0:00:07]} 30. Qg5 {[%clk 0:00:28]}  Rc8 {[%clk 0:00:02]} 31. Qf6 {[%clk 0:00:20]}  Qc2 {[%clk 0:00:01]} 32. Ng5 {[%clk 0:00:15]}  Rc7 {[%clk 0:00:02]} 33. Qd8+ {[%clk 0:00:13]}  Kg7 {[%clk 0:00:02]} 34. Qd4+ {[%clk 0:00:13]}  Kg8 {[%clk 0:00:02]} 35. Nde4 {[%clk 0:00:14]}  h6 {[%clk 0:00:01]} 36. Nf6+ {[%clk 0:00:13]}  Kf8 {[%clk 0:00:02]} 37. Nfh7+ {[%clk 0:00:11]}  Kg8 {[%clk 0:00:01]} 38. Qd8+ {[%clk 0:00:09]}  Kg7 {[%clk 0:00:02]} 39. Qf8# {[%clk 0:00:08]} 1-0

[Event "December 5 Late 2023"]
[Site "https://www.chess.com"]
[Date "2023.12.05"]
[Round "1"]
[White "Yuan, Qingyu"]
[Black "Matthes, Aaron"]
[Result "1-0"]
[Board "63"]
[TimeControl "180+1"]
[WhiteFideId "8609772"]
[BlackFideId "16227310"]
[WhiteElo "2824"]
[BlackElo "2410"]
[WhiteTeam "CHN"]
[BlackTeam "GER"]
[WhiteClock "0:00:15"]
[BlackClock "0:00:27"]

1. e4 {[%clk 0:03:00]}  c6 {[%clk 0:02:59]} 2. d4 {[%clk 0:03:00]}  d5 {[%clk 0:03:00]} 3. exd5 {[%clk 0:03:01]}  cxd5 {[%clk 0:03:01]} 4. Bd3 {[%clk 0:03:02]}  Nf6 {[%clk 0:02:58]} 5. h3 {[%clk 0:03:02]}  Nc6 {[%clk 0:02:58]} 6. c3 {[%clk 0:03:03]}  g6 {[%clk 0:02:50]} 7. Nf3 {[%clk 0:03:02]}  Bg7 {[%clk 0:02:49]} 8. O-O {[%clk 0:03:03]}  O-O {[%clk 0:02:50]} 9. Re1 {[%clk 0:03:04]}  Bf5 {[%clk 0:02:48]} 10. Bf1 {[%clk 0:03:04]}  Bxb1 {[%clk 0:02:46]} 11. Rxb1 {[%clk 0:03:03]}  e6 {[%clk 0:02:47]} 12. Bf4 {[%clk 0:03:01]}  a6 {[%clk 0:02:43]} 13. Bd3 {[%clk 0:02:53]}  b5 {[%clk 0:02:43]} 14. b4 {[%clk 0:02:47]}  Rc8 {[%clk 0:02:33]} 15. a4 {[%clk 0:02:44]}  Na7 {[%clk 0:02:17]} 16. Qd2 {[%clk 0:02:22]}  Qb6 {[%clk 0:02:09]} 17. Ra1 {[%clk 0:02:17]}  bxa4 {[%clk 0:01:55]} 18. Rxa4 {[%clk 0:01:44]}  Nb5 {[%clk 0:01:55]} 19. Rc1 {[%clk 0:01:38]}  Nd7 {[%clk 0:01:38]} 20. Bf1 {[%clk 0:01:24]}  Rc6 {[%clk 0:01:34]} 21. Ne1 {[%clk 0:01:14]}  Rfc8 {[%clk 0:01:32]} 22. Bxb5 {[%clk 0:01:14]}  axb5 {[%clk 0:01:28]} 23. Raa1 {[%clk 0:01:02]}  e5 {[%clk 0:00:54]} 24. dxe5 {[%clk 0:00:39]}  Nxe5 {[%clk 0:00:52]} 25. Be3 {[%clk 0:00:38]}  Nc4 {[%clk 0:00:48]} 26. Qd3 {[%clk 0:00:24]}  Nxe3 {[%clk 0:00:48]} 27. fxe3 {[%clk 0:00:25]}  Rxc3 {[%clk 0:00:46]} 28. Rxc3 {[%clk 0:00:21]}  Rxc3 {[%clk 0:00:45]} 29. Ra8+ {[%clk 0:00:19]}  Bf8 {[%clk 0:00:38]} 30. Qxc3 {[%clk 0:00:18]}  Qe6 {[%clk 0:00:27]} 31. Qc5 {[%clk 0:00:15]} 1-0

[Event "December 5 Late 2023"]
[Site "https://www.chess.com"]
[Date "2023.12.05"]
[Round "1"]
[White "Lopusiewicz, Piotr"]
[Black "Quesada Perez, Yasser"]
[Result "1-0"]
[Board "64"]
[TimeControl "180+1"]
[WhiteFideId "1116029"]
[BlackFideId "3509362"]
[WhiteElo "2410"]
[BlackElo "2824"]
[WhiteTeam "POL"]
[BlackTeam "CUB"]
[WhiteClock "0:00:08"]
[BlackClock "0:00:06"]

1. d4 {[%clk 0:03:00]}  Nf6 {[%clk 0:02:59]} 2. c4 {[%clk 0:03:01]}  e6 {[%clk 0:02:59]} 3. Nf3 {[%clk 0:03:01]}  Bb4+ {[%clk 0:02:58]} 4. Bd2 {[%clk 0:03:01]}  Qe7 {[%clk 0:02:56]} 5. g3 {[%clk 0:03:01]}  O-O {[%clk 0:02:55]} 6. Bg2 {[%clk 0:03:01]}  Nc6 {[%clk 0:02:55]} 7. O-O {[%clk 0:03:01]}  Bxd2 {[%clk 0:02:55]} 8. Qxd2 {[%clk 0:03:01]}  d6 {[%clk 0:02:56]} 9. Nc3 {[%clk 0:03:00]}  e5 {[%clk 0:02:47]} 10. dxe5 {[%clk 0:02:52]}  Nxe5 {[%clk 0:02:46]} 11. b3 {[%clk 0:02:37]}  h6 {[%clk 0:02:26]} 12. Rac1 {[%clk 0:02:37]}  a5 {[%clk 0:02:18]} 13. Rfd1 {[%clk 0:02:37]}  Ra6 {[%clk 0:01:51]} 14. Nd4 {[%clk 0:02:36]}  c6 {[%clk 0:01:43]} 15. e4 {[%clk 0:02:35]}  Bg4 {[%clk 0:01:37]} 16. Re1 {[%clk 0:02:23]}  Rd8 {[%clk 0:01:35]} 17. h3 {[%clk 0:02:21]}  Bc8 {[%clk 0:01:35]} 18. f4 {[%clk 0:02:16]}  Ng6 {[%clk 0:01:33]} 19. Qf2 {[%clk 0:02:08]}  Qf8 {[%clk 0:01:28]} 20. Rcd1 {[%clk 0:02:08]}  Ra8 {[%clk 0:01:27]} 21. g4 {[%clk 0:01:48]}  Nh7 {[%clk 0:01:27]} 22. Nf5 {[%clk 0:01:44]}  Be6 {[%clk 0:01:25]} 23. Ng3 {[%clk 0:01:43]}  Bc8 {[%clk 0:01:24]} 24. Qb2 {[%clk 0:01:37]}  Nh4 {[%clk 0:01:23]} 25. Nh5 {[%clk 0:01:33]}  Nxg2 {[%clk 0:01:22]} 26. Kxg2 {[%clk 0:01:32]}  g6 {[%clk 0:01:20]} 27. Ng3 {[%clk 0:01:31]}  Qe7 {[%clk 0:01:19]} 28. Nce2 {[%clk 0:01:27]}  a4 {[%clk 0:01:15]} 29. Ng1 {[%clk 0:01:21]}  Be6 {[%clk 0:01:11]} 30. f5 {[%clk 0:01:18]}  Bc8 {[%clk 0:01:06]} 31. e5 {[%clk 0:01:10]}  dxe5 {[%clk 0:01:02]} 32. Rxd8+ {[%clk 0:01:10]}  Qxd8 {[%clk 0:01:02]} 33. Qxe5 {[%clk 0:01:08]}  Bd7 {[%clk 0:00:47]} 34. fxg6 {[%clk 0:01:06]}  fxg6 {[%clk 0:00:47]} 35. Rd1 {[%clk 0:00:51]}  Nf8 {[%clk 0:00:30]} 36. Ne4 {[%clk 0:00:45]}  Nh7 {[%clk 0:00:14]} 37. Qd6 {[%clk 0:00:36]}  Qe8 {[%clk 0:00:10]} 38. Re1 {[%clk 0:00:28]}  Qf7 {[%clk 0:00:06]} 39. Nf3 {[%clk 0:00:23]}  Re8 {[%clk 0:00:06]} 40. Ne5 {[%clk 0:00:21]}  Qe6 {[%clk 0:00:07]} 41. Qxe6+ {[%clk 0:00:19]}  Bxe6 {[%clk 0:00:06]} 42. Nxg6 {[%clk 0:00:12]}  Bc8 {[%clk 0:00:04]} 43. Kf2 {[%clk 0:00:07]}  a3 {[%clk 0:00:02]} 44. Nd6 {[%clk 0:00:06]}  Rd8 {[%clk 0:00:02]} 45. Ne7+ {[%clk 0:00:05]}  Kg7 {[%clk 0:00:01]} 46. Nexc8 {[%clk 0:00:05]}  b5 {[%clk 0:00:01]} 47. Re7+ {[%clk 0:00:05]}  Kg6 {[%clk 0:00:01]} 48. Re6+ {[%clk 0:00:05]}  Kg7 {[%clk 0:00:02]} 49. Nf5+ {[%clk 0:00:04]}  Kg8 {[%clk 0:00:02]} 50. Ncd6 {[%clk 0:00:04]}  Ng5 {[%clk 0:00:02]} 51. Rg6+ {[%clk 0:00:04]}  Kf8 {[%clk 0:00:02]} 52. Rf6+ {[%clk 0:00:04]}  Kg8 {[%clk 0:00:02]} 53. Rxh6 {[%clk 0:00:04]}  Ra8 {[%clk 0:00:01]} 54. Rg6+ {[%clk 0:00:04]}  Kf8 {[%clk 0:00:02]} 55. Rxg5 {[%clk 0:00:05]}  bxc4 {[%clk 0:00:03]} 56. bxc4 {[%clk 0:00:05]}  Rb8 {[%clk 0:00:04]} 57. Rg6 {[%clk 0:00:05]}  Rb2+ {[%clk 0:00:04]} 58. Ke3 {[%clk 0:00:06]}  Rxa2 {[%clk 0:00:05]} 59. Rf6+ {[%clk 0:00:06]}  Kg8 {[%clk 0:00:05]} 60. Rg6+ {[%clk 0:00:06]}  Kf8 {[%clk 0:00:06]} 61. Rf6+ {[%clk 0:00:07]}  Kg8 {[%clk 0:00:06]} 62. Ne7+ {[%clk 0:00:08]}  Kg7 {[%clk 0:00:07]} 63. Rf7+ {[%clk 0:00:08]}  Kh8 {[%clk 0:00:07]} 64. Ndf5 {[%clk 0:00:08]}  Ra1 {[%clk 0:00:06]} 65. Ng6+ {[%clk 0:00:08]}  Kg8 {[%clk 0:00:06]} 66. Rg7# {[%clk 0:00:08]} 1-0

[Event "December 5 Late 2023"]
[Site "https://www.chess.com"]
[Date "2023.12.05"]
[Round "1"]
[White "Gadimbayli, Abdulla"]
[Black "Uryupin, Igor"]
[Result "1-0"]
[Board "65"]
[TimeControl "180+1"]
[WhiteFideId "13404938"]
[BlackFideId "4182529"]
[WhiteElo "2816"]
[BlackElo "2408"]
[WhiteTeam "AZE"]
[BlackTeam "RUS"]
[WhiteClock "0:00:25"]
[BlackClock "0:00:05"]

1. e4 {[%clk 0:03:00]}  e6 {[%clk 0:02:59]} 2. d4 {[%clk 0:03:00]}  d5 {[%clk 0:02:59]} 3. Nd2 {[%clk 0:02:59]}  Nc6 {[%clk 0:02:58]} 4. c3 {[%clk 0:02:59]}  e5 {[%clk 0:02:57]} 5. exd5 {[%clk 0:02:59]}  Qxd5 {[%clk 0:02:56]} 6. Ngf3 {[%clk 0:03:00]}  exd4 {[%clk 0:02:56]} 7. Bc4 {[%clk 0:03:01]}  Qh5 {[%clk 0:02:54]} 8. O-O {[%clk 0:03:01]}  Bd6 {[%clk 0:02:48]} 9. Ne4 {[%clk 0:02:57]}  Bg4 {[%clk 0:02:39]} 10. Nxd6+ {[%clk 0:02:51]}  cxd6 {[%clk 0:02:38]} 11. Qe1+ {[%clk 0:02:33]}  Nge7 {[%clk 0:02:34]} 12. Nxd4 {[%clk 0:02:33]}  O-O {[%clk 0:02:14]} 13. Nxc6 {[%clk 0:02:33]}  Nxc6 {[%clk 0:02:13]} 14. Bf4 {[%clk 0:02:34]}  Ne5 {[%clk 0:02:10]} 15. Qe4 {[%clk 0:02:11]}  b6 {[%clk 0:02:01]} 16. Rfe1 {[%clk 0:02:01]}  Rae8 {[%clk 0:01:54]} 17. Qd4 {[%clk 0:02:01]}  Nxc4 {[%clk 0:01:42]} 18. Qxc4 {[%clk 0:02:01]}  Rxe1+ {[%clk 0:01:39]} 19. Rxe1 {[%clk 0:02:01]}  Be6 {[%clk 0:01:29]} 20. Qa4 {[%clk 0:01:58]}  Qd5 {[%clk 0:01:25]} 21. a3 {[%clk 0:01:51]}  a5 {[%clk 0:01:19]} 22. Rd1 {[%clk 0:01:47]}  Qa2 {[%clk 0:01:08]} 23. Bxd6 {[%clk 0:01:16]}  Rd8 {[%clk 0:01:06]} 24. Be5 {[%clk 0:01:06]}  Rxd1+ {[%clk 0:01:01]} 25. Qxd1 {[%clk 0:01:07]}  f6 {[%clk 0:01:01]} 26. Bc7 {[%clk 0:00:44]}  Qxb2 {[%clk 0:01:00]} 27. h3 {[%clk 0:00:41]}  Qxc3 {[%clk 0:00:56]} 28. Qd8+ {[%clk 0:00:41]}  Kf7 {[%clk 0:00:54]} 29. Bd6 {[%clk 0:00:42]}  Qe1+ {[%clk 0:00:49]} 30. Kh2 {[%clk 0:00:42]}  Qxf2 {[%clk 0:00:47]} 31. Qe7+ {[%clk 0:00:41]}  Kg6 {[%clk 0:00:45]} 32. Qxe6 {[%clk 0:00:42]}  b5 {[%clk 0:00:40]} 33. Qe8+ {[%clk 0:00:41]}  Kh6 {[%clk 0:00:36]} 34. Qxb5 {[%clk 0:00:40]}  Qd2 {[%clk 0:00:34]} 35. Bg3 {[%clk 0:00:37]}  Qc3 {[%clk 0:00:30]} 36. a4 {[%clk 0:00:35]}  g5 {[%clk 0:00:28]} 37. Qe8 {[%clk 0:00:31]}  Qb4 {[%clk 0:00:22]} 38. Qe6 {[%clk 0:00:25]}  Kg7 {[%clk 0:00:20]} 39. Bd6 {[%clk 0:00:25]}  Qxa4 {[%clk 0:00:18]} 40. Qe7+ {[%clk 0:00:25]}  Kg6 {[%clk 0:00:17]} 41. Qf8 {[%clk 0:00:25]}  Qb4 {[%clk 0:00:05]} 42. Bxb4 {[%clk 0:00:25]} 1-0

[Event "December 5 Late 2023"]
[Site "https://www.chess.com"]
[Date "2023.12.05"]
[Round "1"]
[White "Zhou, Qiyu"]
[Black "Brodsky, David"]
[Result "0-1"]
[Board "66"]
[TimeControl "180+1"]
[WhiteFideId "505161"]
[BlackFideId "2073250"]
[WhiteElo "2407"]
[BlackElo "2804"]
[WhiteTeam "CAN"]
[BlackTeam "USA"]
[WhiteClock "0:00:47"]
[BlackClock "0:00:43"]

1. e4 {[%clk 0:03:00]}  c5 {[%clk 0:02:57]} 2. Nf3 {[%clk 0:03:00]}  d6 {[%clk 0:02:57]} 3. d4 {[%clk 0:03:01]}  cxd4 {[%clk 0:02:58]} 4. Nxd4 {[%clk 0:03:02]}  Nf6 {[%clk 0:02:59]} 5. Nc3 {[%clk 0:03:02]}  a6 {[%clk 0:02:59]} 6. Be3 {[%clk 0:03:01]}  e5 {[%clk 0:02:59]} 7. Nb3 {[%clk 0:03:01]}  Be7 {[%clk 0:02:59]} 8. h3 {[%clk 0:03:01]}  Be6 {[%clk 0:02:56]} 9. Qf3 {[%clk 0:02:59]}  O-O {[%clk 0:02:55]} 10. O-O-O {[%clk 0:03:00]}  b5 {[%clk 0:02:45]} 11. g4 {[%clk 0:02:59]}  b4 {[%clk 0:02:45]} 12. Nd5 {[%clk 0:02:59]}  Nxd5 {[%clk 0:02:45]} 13. exd5 {[%clk 0:03:00]}  Bc8 {[%clk 0:02:43]} 14. Bd3 {[%clk 0:02:59]}  Qc7 {[%clk 0:02:42]} 15. Kb1 {[%clk 0:02:58]}  a5 {[%clk 0:02:42]} 16. Qe4 {[%clk 0:02:52]}  f5 {[%clk 0:02:34]} 17. gxf5 {[%clk 0:02:51]}  Bxf5 {[%clk 0:02:33]} 18. Qg2 {[%clk 0:02:51]}  Bxd3 {[%clk 0:02:20]} 19. Rxd3 {[%clk 0:02:52]}  a4 {[%clk 0:02:14]} 20. Nd2 {[%clk 0:02:52]}  Nd7 {[%clk 0:02:14]} 21. Rg1 {[%clk 0:02:51]}  Bf6 {[%clk 0:02:01]} 22. Ne4 {[%clk 0:02:51]}  Kh8 {[%clk 0:01:59]} 23. Bg5 {[%clk 0:02:48]}  Rac8 {[%clk 0:01:19]} 24. f3 {[%clk 0:02:29]}  Bxg5 {[%clk 0:01:14]} 25. Nxg5 {[%clk 0:02:30]}  Nc5 {[%clk 0:01:13]} 26. Re3 {[%clk 0:02:21]}  h6 {[%clk 0:01:02]} 27. Ne4 {[%clk 0:02:15]}  Nxe4 {[%clk 0:01:01]} 28. Rxe4 {[%clk 0:02:16]}  Rxf3 {[%clk 0:00:54]} 29. Rc4 {[%clk 0:01:53]}  Rf1+ {[%clk 0:00:53]} 30. Rxf1 {[%clk 0:01:48]}  Qxc4 {[%clk 0:00:54]} 31. Rf7 {[%clk 0:01:40]}  Rg8 {[%clk 0:00:51]} 32. Re7 {[%clk 0:01:24]}  a3 {[%clk 0:00:45]} 33. Re6 {[%clk 0:01:12]}  Qd4 {[%clk 0:00:43]} 34. c3 {[%clk 0:00:47]}  Qd1# {[%clk 0:00:43]} 0-1